[Event "Božićni turnir u VaraždinskimToplicama 26.12.2025."]
[Site "Varazdinske Toplice, Croatia"]
[Date "2025.12.26"]
[Round "1.6"]
[White "Mravunac, Damir"]
[Black "Petrus, Mladen"]
[Result "1-0"]
[TimeControl "10"]
[WhiteFideId "14502810"]
[BlackFideId "14575884"]
[WhiteElo "2044"]
[BlackElo "1577"]

1. f4 {[%clk 00:09:59]} Nc6 {[%clk 00:09:57]} {[%emt 00:00:04]} 2. Nf3 {[%clk
00:09:56]} {[%emt 00:00:02]} e6 {[%clk 00:09:55]} {[%emt 00:00:04]} 3. b3
{[%clk 00:09:53]} {[%emt 00:00:02]} d5 {[%clk 00:09:53]} {[%emt 00:00:02]} 4.
e3 {[%clk 00:09:51]} {[%emt 00:00:02]} Nf6 {[%clk 00:09:45]} {[%emt 00:00:08]}
5. Bb5 {[%clk 00:09:48]} {[%emt 00:00:02]} Bd7 {[%clk 00:09:44]} {[%emt
00:00:01]} 6. Bb2 {[%clk 00:09:46]} {[%emt 00:00:02]} Be7 {[%clk 00:09:43]}
{[%emt 00:00:02]} 7. O-O {[%clk 00:09:43]} {[%emt 00:00:03]} a6 {[%clk
00:09:32]} {[%emt 00:00:11]} 8. Bxc6 {[%clk 00:09:40]} {[%emt 00:00:02]} Bxc6
{[%clk 00:09:31]} {[%emt 00:00:02]} 9. d3 {[%clk 00:09:22]} {[%emt 00:00:19]}
O-O {[%clk 00:09:17]} {[%emt 00:00:13]} 10. Qe1 {[%clk 00:09:20]} {[%emt
00:00:02]} h6 {[%clk 00:09:10]} {[%emt 00:00:07]} 11. Nbd2 {[%clk 00:09:17]}
{[%emt 00:00:02]} Nh7 {[%clk 00:08:57]} {[%emt 00:00:14]} 12. Ne5 {[%clk
00:09:08]} {[%emt 00:00:08]} Bf6 {[%clk 00:08:47]} {[%emt 00:00:11]} 13. Ndf3
{[%clk 00:09:00]} {[%emt 00:00:07]} Qd6 {[%clk 00:07:57]} {[%emt 00:00:50]} 14.
g4 {[%clk 00:08:32]} {[%emt 00:00:27]} Bxe5 {[%clk 00:07:22]} {[%emt 00:00:36]}
15. Bxe5 {[%clk 00:08:22]} {[%emt 00:00:10]} Qe7 {[%clk 00:07:11]} {[%emt
00:00:11]} 16. h4 {[%clk 00:08:12]} {[%emt 00:00:10]} f6 {[%clk 00:07:09]}
{[%emt 00:00:02]} 17. Bb2 {[%clk 00:08:04]} {[%emt 00:00:07]} Bd7 {[%clk
00:07:03]} {[%emt 00:00:07]} 18. Qg3 {[%clk 00:07:53]} {[%emt 00:00:10]} c5
{[%clk 00:06:49]} {[%emt 00:00:15]} 19. a4 {[%clk 00:07:43]} {[%emt 00:00:10]}
b5 {[%clk 00:06:43]} {[%emt 00:00:07]} 20. a5 {[%clk 00:07:41]} {[%emt
00:00:02]} Rac8 {[%clk 00:06:34]} {[%emt 00:00:09]} 21. Rf2 {[%clk 00:07:13]}
{[%emt 00:00:27]} Bc6 {[%clk 00:06:23]} {[%emt 00:00:11]} 22. Rg2 {[%clk
00:06:42]} {[%emt 00:00:30]} Rf7 {[%clk 00:06:14]} {[%emt 00:00:10]} 23. Rh2
{[%clk 00:06:14]} {[%emt 00:00:28]} Qd6 {[%clk 00:06:11]} {[%emt 00:00:03]} 24.
Rf1 {[%clk 00:05:06]} {[%emt 00:01:06]} d4 {[%clk 00:05:51]} {[%emt 00:00:22]}
25. e4 {[%clk 00:04:55]} {[%emt 00:00:11]} Rcf8 {[%clk 00:05:40]} {[%emt
00:00:11]} 26. b4 {[%clk 00:04:44]} {[%emt 00:00:11]} Kh8 {[%clk 00:05:00]}
{[%emt 00:00:40]} 27. bxc5 {[%clk 00:04:40]} {[%emt 00:00:04]} Qxc5 {[%clk
00:04:59]} {[%emt 00:00:01]} 28. Bxd4 {[%clk 00:04:36]} {[%emt 00:00:05]} Qd6
{[%clk 00:04:45]} {[%emt 00:00:13]} 29. g5 {[%clk 00:04:20]} {[%emt 00:00:15]}
fxg5 {[%clk 00:04:23]} {[%emt 00:00:24]} 30. hxg5 {[%clk 00:02:41]} {[%emt
00:01:38]} Qxf4 {[%clk 00:03:34]} {[%emt 00:00:49]} 31. Qxf4 {[%clk 00:02:25]}
{[%emt 00:00:16]} Rxf4 {[%clk 00:03:33]} {[%emt 00:00:02]} 32. gxh6 {[%clk
00:02:13]} {[%emt 00:00:11]} Rg4+ {[%clk 00:02:50]} {[%emt 00:00:44]} 33. Kh1
{[%clk 00:01:45]} {[%emt 00:00:27]} Rf7 {[%clk 00:02:49]} {[%emt 00:00:01]} 34.
hxg7+ {[%clk 00:01:24]} {[%emt 00:00:20]} Kg8 {[%clk 00:02:44]} {[%emt
00:00:06]} 35. Rff2 {[%clk 00:01:17]} {[%emt 00:00:06]} Rg3 {[%clk 00:01:32]}
{[%emt 00:01:14]} 36. Rxh7 {[%clk 00:01:08]} {[%emt 00:00:08]} Rgxg7 {[%clk
00:01:19]} {[%emt 00:00:13]} 37. Rxg7+ {[%clk 00:01:03]} {[%emt 00:00:05]} Rxg7
{[%clk 00:01:18]} 38. Bxg7 Kxg7 {[%clk 00:01:18]} 39. Ne5 {[%clk 00:01:00]}
{[%emt 00:00:01]} Bb7 {[%clk 00:01:13]} {[%emt 00:00:05]} 40. Rf7+ {[%clk
00:00:58]} {[%emt 00:00:01]} 1-0

[Event "Božićni turnir u VaraždinskimToplicama 26.12.2025."]
[Site "Varazdinske Toplice, Croatia"]
[Date "2025.12.26"]
[Round "1.7"]
[White "Juras, Ivan"]
[Black "Sagovac, Kristijan"]
[Result "0-1"]
[TimeControl "10"]
[WhiteFideId "14523981"]
[BlackFideId "14542960"]
[WhiteElo "1705"]
[BlackElo "2014"]

1. g3 {[%clk 00:09:59]} g6 {[%clk 00:09:59]} {[%emt 00:00:02]} 2. Bg2 {[%clk
00:09:58]} Bg7 {[%clk 00:09:58]} {[%emt 00:00:01]} 3. e3 {[%clk 00:09:55]}
{[%emt 00:00:02]} c6 {[%clk 00:09:58]} {[%emt 00:00:01]} 4. Ne2 {[%clk
00:09:54]} {[%emt 00:00:01]} d5 {[%clk 00:09:57]} {[%emt 00:00:02]} 5. O-O
{[%clk 00:09:51]} {[%emt 00:00:02]} Nf6 {[%clk 00:09:56]} {[%emt 00:00:01]} 6.
b3 {[%clk 00:09:48]} {[%emt 00:00:03]} O-O {[%clk 00:09:55]} {[%emt 00:00:01]}
7. Bb2 {[%clk 00:09:47]} {[%emt 00:00:01]} Re8 {[%clk 00:09:53]} {[%emt
00:00:03]} 8. d3 {[%clk 00:09:44]} {[%emt 00:00:02]} e5 {[%clk 00:09:51]}
{[%emt 00:00:02]} 9. Nd2 {[%clk 00:09:41]} {[%emt 00:00:02]} Bf5 {[%clk
00:09:47]} {[%emt 00:00:04]} 10. h3 {[%emt 00:00:20]} h5 11. f4 {[%clk
00:09:19]} {[%emt 00:00:03]} exf4 {[%clk 00:09:16]} {[%emt 00:00:31]} 12. exf4
{[%clk 00:09:11]} {[%emt 00:00:07]} Qb6+ {[%clk 00:09:05]} {[%emt 00:00:12]} 13.
Kh2 {[%clk 00:08:51]} {[%emt 00:00:19]} Na6 {[%clk 00:08:31]} {[%emt 00:00:35]}
14. Nd4 {[%clk 00:08:36]} {[%emt 00:00:15]} Bd7 {[%clk 00:08:29]} {[%emt
00:00:01]} 15. a3 {[%clk 00:08:08]} {[%emt 00:00:29]} Ng4+ {[%clk 00:07:47]}
{[%emt 00:00:42]} 16. hxg4 {[%clk 00:07:38]} {[%emt 00:00:29]} Bxg4 {[%clk
00:07:45]} {[%emt 00:00:02]} 17. Bf3 {[%clk 00:07:35]} {[%emt 00:00:04]} Bxf3
{[%clk 00:07:10]} {[%emt 00:00:35]} 18. Qxf3 {[%clk 00:07:17]} {[%emt
00:00:17]} Bxd4 {[%clk 00:07:06]} {[%emt 00:00:05]} 19. Bxd4 {[%clk 00:07:04]}
{[%emt 00:00:13]} Qxd4 {[%clk 00:07:04]} {[%emt 00:00:02]} 20. Qf2 {[%clk
00:06:41]} {[%emt 00:00:23]} Qxf2+ {[%clk 00:06:40]} {[%emt 00:00:24]} 21. Rxf2
{[%clk 00:06:39]} {[%emt 00:00:01]} Re3 {[%clk 00:06:30]} {[%emt 00:00:11]} 22.
Nf3 {[%clk 00:06:27]} {[%emt 00:00:12]} Rae8 {[%clk 00:06:13]} {[%emt
00:00:17]} 23. Ne5 {[%clk 00:06:11]} {[%emt 00:00:15]} Kg7 {[%clk 00:06:08]}
{[%emt 00:00:06]} 24. Kg2 {[%clk 00:06:01]} {[%emt 00:00:09]} f6 {[%clk
00:06:05]} {[%emt 00:00:03]} 25. Nf3 {[%clk 00:05:52]} {[%emt 00:00:09]} Nc7
{[%clk 00:05:27]} {[%emt 00:00:39]} 26. Kf1 {[%clk 00:05:46]} {[%emt 00:00:06]}
Nb5 {[%clk 00:05:21]} {[%emt 00:00:06]} 27. Re1 {[%clk 00:05:35]} {[%emt
00:00:11]} Nd6 {[%clk 00:04:59]} {[%emt 00:00:22]} 28. Rxe3 {[%clk 00:05:23]}
{[%emt 00:00:12]} Rxe3 {[%clk 00:04:58]} {[%emt 00:00:01]} 29. Kg2 {[%clk
00:05:06]} {[%emt 00:00:17]} Nf5 {[%clk 00:04:56]} {[%emt 00:00:02]} 30. Rd2
{[%clk 00:04:41]} {[%emt 00:00:24]} g5 {[%clk 00:04:35]} {[%emt 00:00:22]} 31.
Kf2 {[%clk 00:04:27]} {[%emt 00:00:14]} Kg6 {[%clk 00:04:13]} {[%emt 00:00:22]}
32. c4 {[%clk 00:04:22]} {[%emt 00:00:04]} d4 {[%clk 00:04:02]} {[%emt
00:00:11]} 33. b4 {[%clk 00:04:09]} {[%emt 00:00:15]} Re8 {[%clk 00:03:34]}
{[%emt 00:00:28]} 34. fxg5 {[%clk 00:03:58]} {[%emt 00:00:10]} fxg5 {[%clk
00:03:33]} {[%emt 00:00:01]} 35. a4 {[%clk 00:03:48]} {[%emt 00:00:10]} b6
{[%clk 00:03:32]} {[%emt 00:00:01]} 36. b5 {[%clk 00:03:44]} {[%emt 00:00:04]}
c5 {[%clk 00:03:32]} {[%emt 00:00:01]} 37. Ng1 {[%clk 00:03:09]} {[%emt
00:00:34]} Re3 {[%clk 00:03:29]} {[%emt 00:00:03]} 38. Nf3 {[%clk 00:03:04]}
{[%emt 00:00:05]} g4 {[%clk 00:03:22]} {[%emt 00:00:07]} 39. Nh4+ {[%clk
00:02:58]} {[%emt 00:00:07]} Nxh4 {[%clk 00:03:20]} {[%emt 00:00:01]} 40. gxh4
{[%clk 00:02:56]} {[%emt 00:00:01]} Rh3 {[%clk 00:03:19]} 41. Re2 {[%clk
00:02:52]} {[%emt 00:00:05]} Rh2+ {[%clk 00:03:18]} {[%emt 00:00:01]} 42. Kf1
{[%clk 00:02:48]} {[%emt 00:00:03]} Rxe2 {[%clk 00:03:13]} {[%emt 00:00:05]} 43.
Kxe2 {[%clk 00:02:47]} {[%emt 00:00:02]} Kf5 {[%clk 00:03:12]} 44. Kf2 {[%clk
00:02:44]} {[%emt 00:00:02]} Kf4 {[%clk 00:03:11]} {[%emt 00:00:01]} 45. Kg2
{[%clk 00:02:38]} {[%emt 00:00:07]} Ke3 {[%clk 00:03:07]} {[%emt 00:00:03]} 46.
Kg3 {[%clk 00:02:38]} Kxd3 {[%clk 00:03:06]} {[%emt 00:00:01]} 47. Kf4 {[%clk
00:02:37]} Kxc4 {[%emt 00:00:05]} 48. Kg5 g3 {[%clk 00:02:58]} {[%emt
00:00:05]} 49. Kxh5 {[%clk 00:02:34]} {[%emt 00:00:02]} g2 {[%clk 00:02:56]}
0-1

[Event "Božićni turnir u VaraždinskimToplicama 26.12.2025."]
[Site "Varazdinske Toplice, Croatia"]
[Date "2025.12.26"]
[Round "1.8"]
[White "Sostaric, Denis"]
[Black "Maurovic, Simun"]
[Result "1-0"]
[TimeControl "10"]
[WhiteFideId "14615851"]
[BlackFideId "79319513"]
[WhiteElo "1868"]
[BlackElo "1640"]

1. e4 {[%clk 00:09:57]} {[%emt 00:00:02]} d6 {[%clk 00:09:59]} {[%emt
00:00:02]} 2. d4 {[%clk 00:09:54]} {[%emt 00:00:03]} Nf6 {[%clk 00:09:58]}
{[%emt 00:00:02]} 3. Nc3 {[%clk 00:09:52]} {[%emt 00:00:01]} Nbd7 {[%clk
00:09:54]} {[%emt 00:00:04]} 4. Nf3 {[%clk 00:09:45]} {[%emt 00:00:07]} e5
{[%clk 00:09:53]} {[%emt 00:00:01]} 5. Bc4 {[%clk 00:09:36]} {[%emt 00:00:08]}
Be7 {[%clk 00:09:51]} {[%emt 00:00:02]} 6. a4 {[%clk 00:09:33]} {[%emt
00:00:03]} O-O {[%clk 00:09:48]} {[%emt 00:00:03]} 7. O-O {[%clk 00:09:30]}
{[%emt 00:00:03]} c6 {[%clk 00:09:47]} {[%emt 00:00:02]} 8. Re1 {[%clk
00:09:16]} {[%emt 00:00:13]} Qc7 {[%clk 00:09:43]} {[%emt 00:00:04]} 9. Bd3
{[%clk 00:09:10]} {[%emt 00:00:06]} Re8 {[%clk 00:09:36]} {[%emt 00:00:08]} 10.
b3 {[%clk 00:09:05]} {[%emt 00:00:04]} Nf8 {[%clk 00:09:31]} {[%emt 00:00:05]}
11. h3 {[%clk 00:09:02]} {[%emt 00:00:04]} Be6 {[%emt 00:00:18]} 12. Ba3 {[%clk
00:08:48]} {[%emt 00:00:12]} Ng6 {[%clk 00:08:53]} {[%emt 00:00:22]} 13. Bf1
{[%clk 00:08:39]} {[%emt 00:00:08]} Nf4 {[%clk 00:08:02]} {[%emt 00:00:52]} 14.
Kh2 {[%clk 00:08:31]} {[%emt 00:00:07]} Rad8 {[%clk 00:07:28]} {[%emt
00:00:34]} 15. g3 {[%clk 00:08:25]} {[%emt 00:00:07]} Ng6 {[%clk 00:07:27]}
{[%emt 00:00:01]} 16. Qe2 {[%clk 00:08:13]} {[%emt 00:00:12]} h6 {[%clk
00:06:49]} {[%emt 00:00:38]} 17. Rad1 {[%clk 00:07:57]} {[%emt 00:00:16]} Nd7
{[%clk 00:05:58]} {[%emt 00:00:52]} 18. Bb2 {[%clk 00:07:16]} {[%emt 00:00:40]}
f5 {[%clk 00:05:35]} {[%emt 00:00:23]} 19. d5 {[%clk 00:06:47]} {[%emt
00:00:29]} fxe4 {[%clk 00:05:20]} {[%emt 00:00:16]} 20. Qxe4 {[%clk 00:06:33]}
{[%emt 00:00:12]} Bf7 {[%clk 00:05:09]} {[%emt 00:00:12]} 21. Bc4 {[%clk
00:06:12]} {[%emt 00:00:21]} Ndf8 {[%clk 00:04:03]} {[%emt 00:01:06]} 22. dxc6
{[%clk 00:06:05]} {[%emt 00:00:07]} bxc6 {[%clk 00:03:59]} {[%emt 00:00:04]} 23.
Bxf7+ {[%clk 00:06:02]} {[%emt 00:00:02]} Kxf7 {[%clk 00:03:55]} {[%emt
00:00:04]} 24. Qc4+ {[%clk 00:05:58]} {[%emt 00:00:04]} d5 {[%clk 00:03:47]}
{[%emt 00:00:10]} 25. Nxd5 {[%clk 00:05:53]} {[%emt 00:00:04]} Qb8 {[%clk
00:02:52]} {[%emt 00:00:55]} 26. Nc7+ {[%clk 00:05:28]} {[%emt 00:00:25]} 1-0

[Event "Božićni turnir u VaraždinskimToplicama 26.12.2025."]
[Site "Varazdinske Toplice, Croatia"]
[Date "2025.12.26"]
[Round "1.9"]
[White "Kerman, Josip"]
[Black "Bozinovic, Bogdan"]
[Result "0-1"]
[TimeControl "10"]
[WhiteFideId "14517906"]
[BlackFideId "14502593"]
[WhiteElo "1582"]
[BlackElo "2129"]

1. d4 {[%clk 00:09:58]} {[%emt 00:00:02]} Nf6 {[%clk 00:09:58]} {[%emt
00:00:02]} 2. c4 {[%clk 00:09:56]} {[%emt 00:00:02]} c5 {[%clk 00:09:56]}
{[%emt 00:00:01]} 3. d5 {[%clk 00:09:52]} {[%emt 00:00:05]} e6 {[%clk
00:09:55]} {[%emt 00:00:01]} 4. Nc3 {[%clk 00:09:44]} {[%emt 00:00:08]} exd5
{[%clk 00:09:53]} {[%emt 00:00:02]} 5. cxd5 {[%clk 00:09:29]} {[%emt 00:00:15]}
d6 {[%clk 00:09:51]} {[%emt 00:00:02]} 6. e4 {[%clk 00:09:18]} {[%emt
00:00:11]} g6 {[%clk 00:09:48]} {[%emt 00:00:02]} 7. g3 {[%clk 00:09:11]}
{[%emt 00:00:08]} Bg7 {[%clk 00:09:45]} {[%emt 00:00:04]} 8. Bg2 {[%clk
00:09:09]} O-O {[%clk 00:09:42]} {[%emt 00:00:02]} 9. Nge2 {[%clk 00:09:02]}
{[%emt 00:00:08]} Re8 {[%clk 00:09:38]} {[%emt 00:00:03]} 10. Qc2 {[%clk
00:08:46]} {[%emt 00:00:16]} Na6 {[%clk 00:09:34]} {[%emt 00:00:05]} 11. a3
{[%clk 00:08:44]} {[%emt 00:00:02]} Nc7 {[%clk 00:09:32]} {[%emt 00:00:02]} 12.
O-O {[%clk 00:08:42]} {[%emt 00:00:03]} Rb8 {[%clk 00:09:28]} {[%emt 00:00:04]}
13. Rb1 {[%clk 00:08:34]} {[%emt 00:00:08]} b5 {[%clk 00:09:26]} {[%emt
00:00:01]} 14. b4 {[%clk 00:08:27]} {[%emt 00:00:08]} cxb4 {[%clk 00:09:14]}
{[%emt 00:00:12]} 15. axb4 {[%clk 00:08:19]} {[%emt 00:00:07]} Nd7 {[%clk
00:08:53]} {[%emt 00:00:25]} 16. Be3 {[%clk 00:08:13]} {[%emt 00:00:02]} Nb6
{[%clk 00:08:47]} {[%emt 00:00:06]} 17. Nd4 {[%clk 00:07:52]} {[%emt 00:00:21]}
Bd7 {[%clk 00:08:44]} {[%emt 00:00:03]} 18. Nce2 {[%clk 00:07:20]} {[%emt
00:00:32]} Nc4 {[%clk 00:08:40]} {[%emt 00:00:04]} 19. Nc6 {[%clk 00:06:43]}
{[%emt 00:00:38]} Nxe3 {[%clk 00:08:27]} {[%emt 00:00:12]} 20. fxe3 {[%clk
00:06:35]} {[%emt 00:00:08]} Bxc6 {[%clk 00:08:25]} {[%emt 00:00:02]} 21. Qxc6
{[%clk 00:06:14]} {[%emt 00:00:21]} Rb6 {[%clk 00:08:20]} {[%emt 00:00:05]} 22.
Qc2 {[%clk 00:06:00]} {[%emt 00:00:14]} Qd7 {[%clk 00:08:04]} {[%emt 00:00:16]}
23. Nd4 {[%clk 00:05:49]} {[%emt 00:00:11]} Ra8 {[%clk 00:07:43]} {[%emt
00:00:21]} 24. Rfc1 {[%clk 00:05:35]} {[%emt 00:00:14]} Ne8 {[%clk 00:07:22]}
{[%emt 00:00:22]} 25. Nc6 {[%clk 00:05:30]} {[%emt 00:00:05]} Nf6 {[%clk
00:07:09]} {[%emt 00:00:12]} 26. Qe2 {[%clk 00:04:56]} {[%emt 00:00:34]} Ng4
{[%clk 00:06:52]} {[%emt 00:00:17]} 27. Bh3 {[%clk 00:04:44]} {[%emt 00:00:12]}
h5 {[%clk 00:06:50]} {[%emt 00:00:02]} 28. Bxg4 {[%clk 00:04:29]} {[%emt
00:00:14]} hxg4 {[%clk 00:06:49]} {[%emt 00:00:01]} 29. Rf1 {[%clk 00:04:18]}
{[%emt 00:00:12]} Re8 {[%clk 00:06:42]} {[%emt 00:00:07]} 30. Rf4 {[%clk
00:04:15]} {[%emt 00:00:03]} a6 {[%clk 00:06:02]} {[%emt 00:00:40]} 31. Rbf1
{[%clk 00:04:08]} {[%emt 00:00:07]} Rf8 {[%clk 00:05:55]} {[%emt 00:00:07]} 32.
Qxg4 {[%clk 00:03:55]} {[%emt 00:00:12]} Qb7 {[%clk 00:05:47]} {[%emt
00:00:08]} 33. Rxf7 {[%clk 00:03:37]} {[%emt 00:00:19]} Rxf7 {[%clk 00:05:40]}
{[%emt 00:00:07]} 34. Qe6 {[%clk 00:03:36]} {[%emt 00:00:01]} Qd7 {[%clk
00:05:30]} {[%emt 00:00:11]} 35. Rxf7 {[%clk 00:03:23]} {[%emt 00:00:12]} Qxf7
{[%clk 00:05:28]} {[%emt 00:00:01]} 36. Qxd6 {[%clk 00:03:14]} {[%emt
00:00:10]} Bf8 {[%clk 00:05:23]} {[%emt 00:00:06]} 37. Qf4 {[%clk 00:02:51]}
{[%emt 00:00:23]} Rb7 {[%clk 00:04:57]} {[%emt 00:00:25]} 38. Qxf7+ {[%clk
00:02:33]} {[%emt 00:00:18]} Rxf7 {[%clk 00:04:56]} {[%emt 00:00:01]} 39. e5
{[%clk 00:02:25]} {[%emt 00:00:08]} Rc7 {[%clk 00:04:50]} {[%emt 00:00:05]} 40.
e6 {[%clk 00:02:19]} {[%emt 00:00:07]} Rxc6 {[%clk 00:04:46]} {[%emt 00:00:05]}
41. dxc6 {[%clk 00:02:17]} Bd6 {[%clk 00:04:44]} {[%emt 00:00:02]} 42. Kf2
{[%clk 00:02:16]} {[%emt 00:00:01]} Kg7 {[%clk 00:04:43]} {[%emt 00:00:01]} 43.
Kf3 {[%clk 00:02:13]} {[%emt 00:00:03]} Kf6 {[%clk 00:04:42]} 44. Ke4 {[%clk
00:02:07]} {[%emt 00:00:07]} Kxe6 {[%clk 00:04:40]} {[%emt 00:00:01]} 45. Kd4
{[%clk 00:01:51]} {[%emt 00:00:16]} Bxb4 {[%clk 00:04:36]} {[%emt 00:00:04]} 46.
e4 {[%clk 00:01:43]} {[%emt 00:00:08]} Bd6 {[%clk 00:04:34]} {[%emt 00:00:02]}
47. Ke3 {[%clk 00:01:38]} {[%emt 00:00:06]} a5 {[%clk 00:04:33]} 48. Kd4 {[%clk
00:01:37]} {[%emt 00:00:01]} a4 {[%clk 00:04:32]} {[%emt 00:00:01]} 0-1

[Event "Božićni turnir u VaraždinskimToplicama 26.12.2025."]
[Site "Varazdinske Toplice, Croatia"]
[Date "2025.12.26"]
[Round "1.10"]
[White "Vukmirovic, Dusan"]
[Black "Petric, Martin"]
[Result "1-0"]
[TimeControl "10"]
[WhiteFideId "938785"]
[BlackFideId "79326498"]
[WhiteElo "2082"]
[BlackElo "1615"]

1. e4 {[%clk 00:09:58]} {[%emt 00:00:03]} e6 {[%clk 00:09:52]} {[%emt
00:00:09]} 2. d4 {[%clk 00:09:33]} {[%emt 00:00:24]} d5 {[%clk 00:09:49]}
{[%emt 00:00:02]} 3. Bd3 {[%clk 00:09:12]} {[%emt 00:00:22]} c5 {[%clk
00:09:45]} {[%emt 00:00:03]} 4. c3 {[%clk 00:09:01]} {[%emt 00:00:12]} Nc6
{[%clk 00:09:43]} {[%emt 00:00:01]} 5. Ne2 {[%clk 00:08:37]} {[%emt 00:00:25]}
Qb6 {[%clk 00:09:33]} {[%emt 00:00:09]} 6. O-O {[%clk 00:08:27]} {[%emt
00:00:11]} cxd4 {[%clk 00:09:21]} {[%emt 00:00:11]} 7. Nxd4 {[%clk 00:08:24]}
{[%emt 00:00:04]} Bc5 {[%clk 00:09:16]} {[%emt 00:00:05]} 8. Nb3 {[%clk
00:08:10]} {[%emt 00:00:14]} Nge7 {[%clk 00:08:42]} {[%emt 00:00:34]} 9. Nxc5
{[%clk 00:08:02]} {[%emt 00:00:08]} Qxc5 {[%clk 00:08:40]} {[%emt 00:00:02]} 10.
Nd2 {[%clk 00:07:02]} {[%emt 00:00:59]} a6 {[%clk 00:08:22]} {[%emt 00:00:18]}
11. Nb3 {[%clk 00:06:45]} {[%emt 00:00:18]} Qa7 {[%clk 00:08:12]} {[%emt
00:00:10]} 12. Be3 {[%clk 00:06:37]} {[%emt 00:00:08]} b6 {[%clk 00:08:08]}
{[%emt 00:00:03]} 13. a4 {[%clk 00:06:32]} {[%emt 00:00:06]} a5 {[%clk
00:08:04]} {[%emt 00:00:04]} 14. Nd4 {[%clk 00:06:22]} {[%emt 00:00:09]} Ne5
{[%clk 00:07:59]} {[%emt 00:00:05]} 15. Nb5 {[%clk 00:06:17]} {[%emt 00:00:06]}
Qb8 {[%clk 00:07:46]} {[%emt 00:00:13]} 16. Bf4 {[%clk 00:05:46]} {[%emt
00:00:31]} N7g6 {[%clk 00:07:37]} {[%emt 00:00:09]} 17. Bg3 {[%clk 00:05:45]}
{[%emt 00:00:01]} O-O {[%clk 00:07:27]} {[%emt 00:00:11]} 18. Re1 {[%clk
00:04:56]} {[%emt 00:00:48]} Qb7 {[%clk 00:07:15]} {[%emt 00:00:11]} 19. Nd6
{[%clk 00:04:36]} {[%emt 00:00:21]} Qc6 {[%clk 00:07:14]} {[%emt 00:00:01]} 20.
Nxc8 {[%clk 00:04:32]} {[%emt 00:00:04]} Raxc8 {[%clk 00:07:13]} {[%emt
00:00:02]} 21. exd5 {[%clk 00:04:11]} {[%emt 00:00:20]} Qxd5 {[%clk 00:07:08]}
{[%emt 00:00:04]} 22. Bxe5 {[%clk 00:04:09]} {[%emt 00:00:03]} Nxe5 {[%clk
00:06:59]} {[%emt 00:00:09]} 23. Bxh7+ {[%clk 00:04:05]} {[%emt 00:00:04]} Kxh7
{[%clk 00:06:54]} {[%emt 00:00:05]} 24. Qh5+ {[%clk 00:04:04]} {[%emt
00:00:01]} Kg8 {[%clk 00:06:51]} {[%emt 00:00:03]} 25. Rxe5 {[%clk 00:04:02]}
{[%emt 00:00:03]} Qd3 {[%clk 00:06:38]} {[%emt 00:00:13]} 26. Re3 {[%clk
00:03:53]} {[%emt 00:00:08]} Qc2 {[%clk 00:06:24]} {[%emt 00:00:14]} 27. Rh3
{[%clk 00:03:42]} {[%emt 00:00:10]} 1-0

[Event "Božićni turnir u VaraždinskimToplicama 26.12.2025."]
[Site "Varazdinske Toplice, Croatia"]
[Date "2025.12.26"]
[Round "1.12"]
[White "Hergotic, Ivica"]
[Black "Zlatar, Mario"]
[Result "1-0"]
[TimeControl "10"]
[WhiteFideId "14523884"]
[BlackFideId "79301290"]
[WhiteElo "2054"]
[BlackElo "1609"]

1. e4 {[%clk 00:09:59]} {[%emt 00:00:01]} b6 {[%clk 00:09:58]} {[%emt
00:00:03]} 2. d4 {[%clk 00:09:57]} {[%emt 00:00:02]} Bb7 {[%clk 00:09:55]}
{[%emt 00:00:03]} 3. Bd3 {[%clk 00:09:56]} g6 {[%clk 00:09:53]} {[%emt
00:00:01]} 4. f4 {[%clk 00:09:55]} {[%emt 00:00:02]} d5 {[%clk 00:09:45]}
{[%emt 00:00:08]} 5. e5 {[%clk 00:09:50]} {[%emt 00:00:05]} Bg7 {[%clk
00:09:43]} {[%emt 00:00:01]} 6. Ne2 {[%clk 00:09:46]} {[%emt 00:00:03]} f6
{[%clk 00:09:41]} {[%emt 00:00:03]} 7. Ng3 {[%clk 00:09:38]} {[%emt 00:00:08]}
e6 {[%clk 00:09:27]} {[%emt 00:00:14]} 8. exf6 {[%clk 00:08:12]} {[%emt
00:01:26]} Nxf6 {[%clk 00:09:16]} {[%emt 00:00:10]} 9. Qe2 {[%clk 00:08:08]}
{[%emt 00:00:05]} Nc6 {[%clk 00:08:20]} {[%emt 00:00:57]} 10. c3 {[%clk
00:08:06]} {[%emt 00:00:02]} Qd7 {[%clk 00:08:13]} {[%emt 00:00:06]} 11. Nd2
{[%clk 00:07:59]} {[%emt 00:00:07]} O-O-O {[%clk 00:08:11]} {[%emt 00:00:02]}
12. Nf3 {[%clk 00:07:58]} {[%emt 00:00:01]} Rhf8 {[%clk 00:07:51]} {[%emt
00:00:20]} 13. b4 {[%clk 00:07:43]} {[%emt 00:00:15]} h5 {[%clk 00:07:36]}
{[%emt 00:00:15]} 14. Bxg6 {[%clk 00:07:14]} {[%emt 00:00:29]} e5 {[%clk
00:06:42]} {[%emt 00:00:54]} 15. Bf5 {[%clk 00:06:45]} {[%emt 00:00:30]} Qxf5
{[%emt 00:00:08]} 16. Nxf5 {[%emt 00:00:01]} Bh8 {[%clk 00:06:16]} {[%emt
00:00:17]} 17. Nxe5 {[%clk 00:06:23]} {[%emt 00:00:22]} Ne4 {[%clk 00:06:12]}
{[%emt 00:00:04]} 18. Qxh5 {[%clk 00:06:07]} {[%emt 00:00:15]} Nxc3 {[%clk
00:06:01]} {[%emt 00:00:10]} 19. O-O {[%clk 00:05:55]} {[%emt 00:00:13]} Nxb4
{[%clk 00:05:52]} {[%emt 00:00:10]} 20. Bd2 {[%clk 00:05:43]} {[%emt 00:00:11]}
Bxe5 {[%clk 00:05:49]} {[%emt 00:00:03]} 21. fxe5 {[%clk 00:05:35]} {[%emt
00:00:09]} Rh8 {[%clk 00:05:48]} 22. Qg4 {[%clk 00:05:17]} {[%emt 00:00:17]}
Rdg8 {[%clk 00:05:44]} {[%emt 00:00:05]} 23. Ne7+ {[%clk 00:05:15]} {[%emt
00:00:01]} Kb8 {[%emt 00:00:07]} 24. Qxg8+ {[%clk 00:05:10]} {[%emt 00:00:02]}
Rxg8 {[%clk 00:05:34]} {[%emt 00:00:06]} 25. Nxg8 {[%clk 00:05:08]} {[%emt
00:00:02]} Ne2+ {[%clk 00:05:29]} {[%emt 00:00:05]} 26. Kh1 {[%clk 00:05:07]}
{[%emt 00:00:01]} Nc2 {[%clk 00:05:14]} {[%emt 00:00:15]} 27. Rae1 {[%clk
00:04:57]} {[%emt 00:00:10]} Nexd4 {[%clk 00:05:09]} {[%emt 00:00:06]} 28. Rf8+
{[%clk 00:04:53]} {[%emt 00:00:03]} Bc8 {[%clk 00:05:08]} {[%emt 00:00:01]} 29.
Ne7 {[%clk 00:04:51]} {[%emt 00:00:02]} Kb7 {[%clk 00:05:03]} {[%emt 00:00:06]}
30. Nxc8 {[%clk 00:04:49]} {[%emt 00:00:03]} Nxe1 {[%clk 00:04:59]} {[%emt
00:00:04]} 31. Bxe1 {[%clk 00:04:48]} {[%emt 00:00:01]} Ne2 {[%clk 00:04:54]}
{[%emt 00:00:04]} 32. e6 {[%clk 00:04:45]} {[%emt 00:00:03]} 1-0